[Event "Titled Tuesday Blitz May 9 Late 2023"]
[White "Amburgy, Ryan"]
[Black "Avalos Parra, Joao"]
[WhiteFideId "30924820"]
[BlackFideId "3402541"]
[WhiteElo "2134"]
[BlackElo "2173"]
[Result "1-0"]
[Round "03"]
[TimeControl "180+2"]
[Date "2023.05.09"]
[WhiteClock "0:00:15"]
[BlackClock "0:00:04"]

1. d4 {[%clk 0:03:00]}  d5 {[%clk 0:03:00]} 2. c4 {[%clk 0:03:01]}  e6 {[%clk 0:03:00]} 3. Nc3 {[%clk 0:03:00]}  Nf6 {[%clk 0:03:01]} 4. Nf3 {[%clk 0:03:01]}  Bb4 {[%clk 0:03:01]} 5. Qa4+ {[%clk 0:02:58]}  Nc6 {[%clk 0:03:00]} 6. a3 {[%clk 0:02:59]}  Bxc3+ {[%clk 0:02:26]} 7. bxc3 {[%clk 0:03:00]}  Ne4 {[%clk 0:02:26]} 8. Bf4 {[%clk 0:02:56]}  O-O {[%clk 0:02:23]} 9. e3 {[%clk 0:02:52]}  Nxc3 {[%clk 0:02:19]} 10. Qc2 {[%clk 0:02:52]}  Ne4 {[%clk 0:02:20]} 11. Bd3 {[%clk 0:02:53]}  f5 {[%clk 0:02:16]} 12. cxd5 {[%clk 0:02:52]}  exd5 {[%clk 0:02:16]} 13. O-O {[%clk 0:02:53]}  Kh8 {[%clk 0:02:14]} 14. Rab1 {[%clk 0:02:52]}  Ne7 {[%clk 0:01:55]} 15. Bxc7 {[%clk 0:02:49]}  Qe8 {[%clk 0:01:55]} 16. Ne5 {[%clk 0:02:42]}  Ng6 {[%clk 0:01:53]} 17. f3 {[%clk 0:02:25]}  Nxe5 {[%clk 0:01:46]} 18. Bxe5 {[%clk 0:02:26]}  Ng5 {[%clk 0:01:44]} 19. Qc7 {[%clk 0:02:00]}  Ne6 {[%clk 0:01:40]} 20. Qd6 {[%clk 0:01:58]}  Qd8 {[%clk 0:01:27]} 21. Qxd8 {[%clk 0:01:47]}  Nxd8 {[%clk 0:01:28]} 22. Rfc1 {[%clk 0:01:38]}  Nc6 {[%clk 0:01:28]} 23. Bf4 {[%clk 0:01:39]}  Kg8 {[%clk 0:01:26]} 24. Rc5 {[%clk 0:01:37]}  Rd8 {[%clk 0:01:24]} 25. Rbb5 {[%clk 0:01:29]}  a6 {[%clk 0:01:24]} 26. Rb6 {[%clk 0:01:29]}  Kf7 {[%clk 0:01:20]} 27. Bxa6 {[%clk 0:00:49]}  Rxa6 {[%clk 0:00:50]} 28. Rxa6 {[%clk 0:00:50]}  bxa6 {[%clk 0:00:49]} 29. Rxc6 {[%clk 0:00:51]}  h6 {[%clk 0:00:35]} 30. Be5 {[%clk 0:00:49]}  Be6 {[%clk 0:00:26]} 31. Rxa6 {[%clk 0:00:45]}  Rd7 {[%clk 0:00:26]} 32. h4 {[%clk 0:00:43]}  Rb7 {[%clk 0:00:26]} 33. h5 {[%clk 0:00:39]}  Rb3 {[%clk 0:00:23]} 34. Kf2 {[%clk 0:00:39]}  Rb7 {[%clk 0:00:20]} 35. a4 {[%clk 0:00:38]}  Bc8 {[%clk 0:00:19]} 36. Ra8 {[%clk 0:00:36]}  Bd7 {[%clk 0:00:18]} 37. a5 {[%clk 0:00:36]}  Bb5 {[%clk 0:00:17]} 38. Rd8 {[%clk 0:00:33]}  Bc4 {[%clk 0:00:16]} 39. Rd6 {[%clk 0:00:29]}  Rb2+ {[%clk 0:00:15]} 40. Kg3 {[%clk 0:00:29]}  Bf1 {[%clk 0:00:16]} 41. Kf4 {[%clk 0:00:28]}  Rxg2 {[%clk 0:00:16]} 42. Rd7+ {[%clk 0:00:27]}  Ke6 {[%clk 0:00:13]} 43. Rxg7 {[%clk 0:00:26]}  Ra2 {[%clk 0:00:06]} 44. Rg6+ {[%clk 0:00:25]}  Ke7 {[%clk 0:00:06]} 45. Bc7 {[%clk 0:00:22]}  Ra3 {[%clk 0:00:04]} 46. Rxh6 {[%clk 0:00:20]}  Bd3 {[%clk 0:00:05]} 47. Bb6 {[%clk 0:00:20]}  Ra2 {[%clk 0:00:05]} 48. Rg6 {[%clk 0:00:19]}  Rf2 {[%clk 0:00:06]} 49. Rg3 {[%clk 0:00:19]}  Rh2 {[%clk 0:00:06]} 50. Kg5 {[%clk 0:00:19]}  Ke6 {[%clk 0:00:06]} 51. h6 {[%clk 0:00:19]}  Kf7 {[%clk 0:00:06]} 52. Rg1 {[%clk 0:00:16]}  Rh3 {[%clk 0:00:06]} 53. Kf4 {[%clk 0:00:15]}  Rh4+ {[%clk 0:00:06]} 54. Ke5 {[%clk 0:00:15]}  Rxh6 {[%clk 0:00:07]} 55. Kxd5 {[%clk 0:00:16]}  Rh2 {[%clk 0:00:06]} 56. Ra1 {[%clk 0:00:14]}  Be2 {[%clk 0:00:05]} 57. f4 {[%clk 0:00:13]}  Bf3+ {[%clk 0:00:06]} 58. Ke5 {[%clk 0:00:13]}  Kg6 {[%clk 0:00:05]} 59. a6 {[%clk 0:00:13]}  Re2 {[%clk 0:00:05]} 60. d5 {[%clk 0:00:13]}  Rd2 {[%clk 0:00:06]} 61. Bd4 {[%clk 0:00:13]}  Rc2 {[%clk 0:00:06]} 62. a7 {[%clk 0:00:13]}  Rc8 {[%clk 0:00:06]} 63. a8=Q {[%clk 0:00:14]}  Rxa8 {[%clk 0:00:05]} 64. Rxa8 {[%clk 0:00:15]}  Be4 {[%clk 0:00:04]} 65. Rg8+ {[%clk 0:00:14]}  Kf7 {[%clk 0:00:05]} 66. Rg5 {[%clk 0:00:15]}  Ke7 {[%clk 0:00:04]} 67. Rg7+ {[%clk 0:00:15]} 1-0


[Site "https://www.chess.com"]

[Event "Titled Tuesday Blitz May 9 Late 2023"]
[White "Mazurkiewicz, Michal"]
[Black "Bolourchifard, Farzad"]
[WhiteFideId "1124943"]
[BlackFideId "12510084"]
[WhiteElo "2054"]
[BlackElo "2317"]
[Result "1/2-1/2"]
[Round "03"]
[TimeControl "180+2"]
[Date "2023.05.09"]
[WhiteClock "0:00:05"]
[BlackClock "0:00:04"]

1. e4 {[%clk 0:03:00]}  e5 {[%clk 0:03:00]} 2. Nf3 {[%clk 0:03:00]}  Nc6 {[%clk 0:03:00]} 3. Bb5 {[%clk 0:03:00]}  a6 {[%clk 0:03:00]} 4. Bxc6 {[%clk 0:03:00]}  dxc6 {[%clk 0:03:01]} 5. O-O {[%clk 0:03:01]}  f6 {[%clk 0:03:00]} 6. d4 {[%clk 0:03:01]}  exd4 {[%clk 0:03:00]} 7. Nxd4 {[%clk 0:03:02]}  c5 {[%clk 0:03:01]} 8. Nb3 {[%clk 0:03:02]}  Qxd1 {[%clk 0:03:00]} 9. Rxd1 {[%clk 0:03:03]}  Bd7 {[%clk 0:03:01]} 10. Be3 {[%clk 0:03:01]}  b6 {[%clk 0:03:00]} 11. Nc3 {[%clk 0:02:58]}  O-O-O {[%clk 0:02:59]} 12. a4 {[%clk 0:02:54]}  a5 {[%clk 0:02:56]} 13. Bf4 {[%clk 0:02:48]}  Ne7 {[%clk 0:02:44]} 14. Nb5 {[%clk 0:02:48]}  Bxb5 {[%clk 0:02:43]} 15. axb5 {[%clk 0:02:46]}  Ng6 {[%clk 0:02:33]} 16. Bg3 {[%clk 0:02:45]}  Be7 {[%clk 0:02:14]} 17. Kf1 {[%clk 0:02:21]}  Rhe8 {[%clk 0:02:12]} 18. f3 {[%clk 0:02:18]}  Nf8 {[%clk 0:01:56]} 19. Nd2 {[%clk 0:02:15]}  Bd6 {[%clk 0:01:53]} 20. Bxd6 {[%clk 0:02:11]}  Rxd6 {[%clk 0:01:54]} 21. Nc4 {[%clk 0:02:11]}  Rdd8 {[%clk 0:01:39]} 22. c3 {[%clk 0:02:10]}  Ne6 {[%clk 0:01:37]} 23. g3 {[%clk 0:02:09]}  Ng5 {[%clk 0:01:33]} 24. Ke2 {[%clk 0:02:02]}  Nf7 {[%clk 0:01:27]} 25. Rxd8+ {[%clk 0:01:42]}  Rxd8 {[%clk 0:01:25]} 26. Rd1 {[%clk 0:01:39]}  Rxd1 {[%clk 0:00:57]} 27. Kxd1 {[%clk 0:01:40]}  Ne5 {[%clk 0:00:58]} 28. Nxe5 {[%clk 0:01:40]}  fxe5 {[%clk 0:00:59]} 29. Kd2 {[%clk 0:01:13]}  c6 {[%clk 0:00:59]} 30. c4 {[%clk 0:01:11]}  cxb5 {[%clk 0:00:58]} 31. cxb5 {[%clk 0:01:11]}  Kc7 {[%clk 0:00:55]} 32. Kd3 {[%clk 0:01:10]}  g5 {[%clk 0:00:53]} 33. Kc4 {[%clk 0:01:09]}  Kd6 {[%clk 0:00:52]} 34. b3 {[%clk 0:01:04]}  Ke6 {[%clk 0:00:50]} 35. Kd3 {[%clk 0:00:56]}  Kd6 {[%clk 0:00:42]} 36. Kc4 {[%clk 0:00:54]}  h5 {[%clk 0:00:28]} 37. h4 {[%clk 0:00:27]}  gxh4 {[%clk 0:00:07]} 38. gxh4 {[%clk 0:00:28]}  Ke6 {[%clk 0:00:08]} 39. Kd3 {[%clk 0:00:28]}  Kd6 {[%clk 0:00:08]} 40. Kc4 {[%clk 0:00:11]}  Ke6 {[%clk 0:00:08]} 41. Kd3 {[%clk 0:00:08]}  Kf6 {[%clk 0:00:09]} 42. Ke3 {[%clk 0:00:06]}  Ke6 {[%clk 0:00:04]} 43. Kd3 {[%clk 0:00:05]} 1/2-1/2


[Site "https://www.chess.com"]

[Event "Titled Tuesday Blitz May 9 Late 2023"]
[White "merinasian"]
[Black "Gritsenko, Nikolai"]
[BlackFideId "14112493"]
[WhiteElo "2437"]
[BlackElo "2389"]
[Result "0-1"]
[Round "03"]
[TimeControl "180+2"]
[Date "2023.05.09"]
[WhiteClock "0:00:04"]
[BlackClock "0:00:10"]

1. d4 {[%clk 0:03:00]}  d5 {[%clk 0:02:59]} 2. Nf3 {[%clk 0:03:00]}  Nc6 {[%clk 0:03:00]} 3. g3 {[%clk 0:02:59]}  Bg4 {[%clk 0:03:00]} 4. Bg2 {[%clk 0:02:47]}  Qd7 {[%clk 0:03:00]} 5. O-O {[%clk 0:02:44]}  Bh3 {[%clk 0:02:59]} 6. c4 {[%clk 0:02:33]}  Bxg2 {[%clk 0:02:58]} 7. Kxg2 {[%clk 0:02:32]}  e6 {[%clk 0:02:56]} 8. Qa4 {[%clk 0:02:28]}  Nf6 {[%clk 0:02:47]} 9. Nc3 {[%clk 0:02:25]}  Be7 {[%clk 0:02:40]} 10. Bg5 {[%clk 0:02:24]}  h6 {[%clk 0:02:23]} 11. Bxf6 {[%clk 0:02:12]}  Bxf6 {[%clk 0:02:23]} 12. cxd5 {[%clk 0:02:05]}  exd5 {[%clk 0:02:16]} 13. Qb3 {[%clk 0:01:46]}  O-O-O {[%clk 0:02:05]} 14. e3 {[%clk 0:01:46]}  g5 {[%clk 0:01:50]} 15. Na4 {[%clk 0:01:40]}  b6 {[%clk 0:01:40]} 16. Rac1 {[%clk 0:01:39]}  Na5 {[%clk 0:01:22]} 17. Qc2 {[%clk 0:01:27]}  Kb8 {[%clk 0:01:16]} 18. Nd2 {[%clk 0:01:21]}  h5 {[%clk 0:01:13]} 19. b4 {[%clk 0:01:21]}  Nb7 {[%clk 0:01:09]} 20. h3 {[%clk 0:01:18]}  Nd6 {[%clk 0:01:01]} 21. Nc5 {[%clk 0:00:58]}  Qc8 {[%clk 0:00:51]} 22. Rb1 {[%clk 0:00:54]}  Ka8 {[%clk 0:00:50]} 23. Nd3 {[%clk 0:00:51]}  Rhe8 {[%clk 0:00:47]} 24. a4 {[%clk 0:00:49]}  Qd7 {[%clk 0:00:38]} 25. a5 {[%clk 0:00:48]}  b5 {[%clk 0:00:38]} 26. Nc5 {[%clk 0:00:45]}  Qc6 {[%clk 0:00:35]} 27. a6 {[%clk 0:00:40]}  Nc4 {[%clk 0:00:35]} 28. Ndb3 {[%clk 0:00:37]}  g4 {[%clk 0:00:33]} 29. h4 {[%clk 0:00:35]}  Be7 {[%clk 0:00:31]} 30. Na5 {[%clk 0:00:34]}  Qg6 {[%clk 0:00:30]} 31. Qxg6 {[%clk 0:00:29]}  fxg6 {[%clk 0:00:30]} 32. Ne6 {[%clk 0:00:22]}  Rd7 {[%clk 0:00:28]} 33. Nf4 {[%clk 0:00:20]}  Rg8 {[%clk 0:00:26]} 34. Nc6 {[%clk 0:00:19]}  Bf8 {[%clk 0:00:25]} 35. Ne5 {[%clk 0:00:19]}  Nxe5 {[%clk 0:00:24]} 36. dxe5 {[%clk 0:00:19]}  Bg7 {[%clk 0:00:24]} 37. e6 {[%clk 0:00:19]}  Rd6 {[%clk 0:00:24]} 38. Nxg6 {[%clk 0:00:17]}  Rxe6 {[%clk 0:00:23]} 39. Nf4 {[%clk 0:00:17]}  Re5 {[%clk 0:00:23]} 40. Rfd1 {[%clk 0:00:15]}  Rd8 {[%clk 0:00:22]} 41. Rbc1 {[%clk 0:00:15]}  Rd7 {[%clk 0:00:22]} 42. Ng6 {[%clk 0:00:12]}  Re6 {[%clk 0:00:21]} 43. Nf4 {[%clk 0:00:12]}  Re5 {[%clk 0:00:21]} 44. Rc5 {[%clk 0:00:11]}  Bf8 {[%clk 0:00:16]} 45. Rcxd5 {[%clk 0:00:11]}  Rexd5 {[%clk 0:00:16]} 46. Rxd5 {[%clk 0:00:11]}  Rxd5 {[%clk 0:00:16]} 47. Nxd5 {[%clk 0:00:12]}  Kb8 {[%clk 0:00:16]} 48. Nf6 {[%clk 0:00:11]}  Bxb4 {[%clk 0:00:15]} 49. Nxh5 {[%clk 0:00:12]}  Bc3 {[%clk 0:00:15]} 50. Nf4 {[%clk 0:00:12]}  b4 {[%clk 0:00:15]} 51. Ne2 {[%clk 0:00:11]}  Bb2 {[%clk 0:00:13]} 52. e4 {[%clk 0:00:09]}  b3 {[%clk 0:00:13]} 53. f4 {[%clk 0:00:10]}  gxf3+ {[%clk 0:00:11]} 54. Kxf3 {[%clk 0:00:09]}  Be5 {[%clk 0:00:11]} 55. Nc1 {[%clk 0:00:05]}  b2 {[%clk 0:00:11]} 56. Nd3 {[%clk 0:00:06]}  b1=Q {[%clk 0:00:11]} 57. Nxe5 {[%clk 0:00:06]}  Qf1+ {[%clk 0:00:10]} 58. Kg4 {[%clk 0:00:07]}  Qxa6 {[%clk 0:00:10]} 59. h5 {[%clk 0:00:06]}  Qe6+ {[%clk 0:00:09]} 60. Kf4 {[%clk 0:00:06]}  Qf6+ {[%clk 0:00:10]} 61. Kg4 {[%clk 0:00:04]}  Qxe5 {[%clk 0:00:10]} 0-1


[Site "https://www.chess.com"]

[Event "Titled Tuesday Blitz May 9 Late 2023"]
[White "Boder, Jan"]
[Black "Subelj, Jan"]
[WhiteFideId "16243226"]
[BlackFideId "14618583"]
[WhiteElo "2241"]
[BlackElo "2474"]
[Result "0-1"]
[Round "03"]
[TimeControl "180+2"]
[Date "2023.05.09"]
[WhiteClock "0:00:00"]
[BlackClock "0:00:46"]

1. c4 {[%clk 0:02:59]}  b6 {[%clk 0:02:53]} 2. Nc3 {[%clk 0:02:49]}  Bb7 {[%clk 0:02:52]} 3. e4 {[%clk 0:02:49]}  e5 {[%clk 0:02:52]} 4. d3 {[%clk 0:02:47]}  Nc6 {[%clk 0:02:52]} 5. g3 {[%clk 0:02:47]}  Bc5 {[%clk 0:02:51]} 6. Bg2 {[%clk 0:02:47]}  Nge7 {[%clk 0:02:51]} 7. Nf3 {[%clk 0:02:46]}  O-O {[%clk 0:02:51]} 8. a3 {[%clk 0:02:45]}  a5 {[%clk 0:02:51]} 9. O-O {[%clk 0:02:45]}  d6 {[%clk 0:02:49]} 10. Rb1 {[%clk 0:02:45]}  Nd4 {[%clk 0:02:47]} 11. b4 {[%clk 0:02:33]}  axb4 {[%clk 0:02:45]} 12. axb4 {[%clk 0:02:34]}  Nxf3+ {[%clk 0:02:46]} 13. Bxf3 {[%clk 0:02:29]}  Bd4 {[%clk 0:02:47]} 14. Nb5 {[%clk 0:02:28]}  Nc6 {[%clk 0:02:42]} 15. Bg2 {[%clk 0:02:20]}  Qe7 {[%clk 0:02:34]} 16. Kh1 {[%clk 0:02:18]}  Ra2 {[%clk 0:02:31]} 17. f4 {[%clk 0:02:03]}  Rfa8 {[%clk 0:02:29]} 18. f5 {[%clk 0:01:18]}  f6 {[%clk 0:02:22]} 19. Qg4 {[%clk 0:01:15]}  Ra1 {[%clk 0:02:19]} 20. Bh6 {[%clk 0:00:46]}  Rxb1 {[%clk 0:02:15]} 21. Rxb1 {[%clk 0:00:47]}  Ra1 {[%clk 0:02:11]} 22. Rxa1 {[%clk 0:00:44]}  Bxa1 {[%clk 0:02:12]} 23. Be3 {[%clk 0:00:39]}  Nxb4 {[%clk 0:02:09]} 24. Qd1 {[%clk 0:00:36]}  Bd4 {[%clk 0:02:00]} 25. Nxd4 {[%clk 0:00:25]}  exd4 {[%clk 0:02:01]} 26. Bxd4 {[%clk 0:00:26]}  Nc6 {[%clk 0:01:44]} 27. Bc3 {[%clk 0:00:26]}  Ne5 {[%clk 0:01:44]} 28. Bb2 {[%clk 0:00:12]}  Bc6 {[%clk 0:01:32]} 29. h3 {[%clk 0:00:12]}  Be8 {[%clk 0:01:32]} 30. g4 {[%clk 0:00:12]}  h6 {[%clk 0:01:32]} 31. Qb3 {[%clk 0:00:12]}  Kh7 {[%clk 0:01:31]} 32. d4 {[%clk 0:00:11]}  Nc6 {[%clk 0:01:30]} 33. Qc3 {[%clk 0:00:10]}  Bf7 {[%clk 0:01:29]} 34. Qd3 {[%clk 0:00:09]}  Na5 {[%clk 0:01:29]} 35. c5 {[%clk 0:00:05]}  bxc5 {[%clk 0:01:28]} 36. dxc5 {[%clk 0:00:05]}  Nc4 {[%clk 0:01:28]} 37. Bc1 {[%clk 0:00:03]}  dxc5 {[%clk 0:01:26]} 38. h4 {[%clk 0:00:04]}  Ne5 {[%clk 0:01:27]} 39. Qe2 {[%clk 0:00:04]}  c4 {[%clk 0:01:26]} 40. g5 {[%clk 0:00:03]}  fxg5 {[%clk 0:01:25]} 41. hxg5 {[%clk 0:00:04]}  hxg5 {[%clk 0:01:26]} 42. Bb2 {[%clk 0:00:04]}  Nd3 {[%clk 0:01:24]} 43. Bc3 {[%clk 0:00:04]}  Qa3 {[%clk 0:01:23]} 44. Bd4 {[%clk 0:00:03]}  Qc1+ {[%clk 0:01:23]} 45. Kh2 {[%clk 0:00:03]}  Qf4+ {[%clk 0:01:23]} 46. Kh1 {[%clk 0:00:03]}  g4 {[%clk 0:01:19]} 47. Bf1 {[%clk 0:00:02]}  g3 {[%clk 0:01:16]} 48. Qg2 {[%clk 0:00:01]}  Bh5 {[%clk 0:01:11]} 49. Qh3 {[%clk 0:00:02]}  Qxe4+ {[%clk 0:01:09]} 50. Bg2 {[%clk 0:00:02]}  Qe1+ {[%clk 0:01:06]} 51. Bf1 {[%clk 0:00:02]}  Kh6 {[%clk 0:00:59]} 52. f6 {[%clk 0:00:02]}  g2+ {[%clk 0:00:53]} 53. Qxg2 {[%clk 0:00:02]}  Qh4+ {[%clk 0:00:52]} 54. Kg1 {[%clk 0:00:02]}  Qxd4+ {[%clk 0:00:53]} 55. Kh1 {[%clk 0:00:01]}  Qxf6 {[%clk 0:00:51]} 56. Qd2+ {[%clk 0:00:01]}  Qg5 {[%clk 0:00:50]} 57. Qh2 {[%clk 0:00:00]}  Qf4 {[%clk 0:00:46]} 0-1


[Site "https://www.chess.com"]

[Event "Titled Tuesday Blitz May 9 Late 2023"]
[White "TheKnightOfBosnia"]
[Black "Sattarov, Bobir"]
[BlackFideId "14203081"]
[WhiteElo "2487"]
[BlackElo "2351"]
[Result "0-1"]
[Round "03"]
[TimeControl "180+2"]
[Date "2023.05.09"]
[WhiteClock "0:00:07"]
[BlackClock "0:00:59"]

1. e4 {[%clk 0:03:00]}  e5 {[%clk 0:02:59]} 2. Nf3 {[%clk 0:03:01]}  Nc6 {[%clk 0:03:00]} 3. Bb5 {[%clk 0:03:01]}  a6 {[%clk 0:03:01]} 4. Ba4 {[%clk 0:03:01]}  Bc5 {[%clk 0:03:01]} 5. O-O {[%clk 0:03:01]}  Qf6 {[%clk 0:03:02]} 6. Nc3 {[%clk 0:02:58]}  Nge7 {[%clk 0:03:02]} 7. d3 {[%clk 0:02:52]}  h6 {[%clk 0:03:02]} 8. Be3 {[%clk 0:02:51]}  Ba7 {[%clk 0:03:02]} 9. Nd5 {[%clk 0:02:48]}  Nxd5 {[%clk 0:03:02]} 10. exd5 {[%clk 0:02:49]}  Ne7 {[%clk 0:03:03]} 11. Bxa7 {[%clk 0:02:43]}  Rxa7 {[%clk 0:03:04]} 12. Re1 {[%clk 0:02:43]}  O-O {[%clk 0:03:04]} 13. Rxe5 {[%clk 0:02:38]}  d6 {[%clk 0:03:04]} 14. Re4 {[%clk 0:02:30]}  Nxd5 {[%clk 0:03:02]} 15. c3 {[%clk 0:02:30]}  Bf5 {[%clk 0:03:01]} 16. Re1 {[%clk 0:02:23]}  Bg4 {[%clk 0:02:56]} 17. Bb3 {[%clk 0:02:23]}  Nf4 {[%clk 0:02:54]} 18. Re3 {[%clk 0:02:17]}  Raa8 {[%clk 0:02:52]} 19. h3 {[%clk 0:02:16]}  Bxh3 {[%clk 0:02:41]} 20. gxh3 {[%clk 0:02:15]}  Rae8 {[%clk 0:02:39]} 21. Kh2 {[%clk 0:02:02]}  Qf5 {[%clk 0:02:32]} 22. Nd4 {[%clk 0:01:59]}  Qg5 {[%clk 0:02:24]} 23. Qg4 {[%clk 0:01:52]}  Rxe3 {[%clk 0:02:16]} 24. fxe3 {[%clk 0:01:49]}  Nxd3 {[%clk 0:02:17]} 25. Qxg5 {[%clk 0:01:49]}  hxg5 {[%clk 0:02:17]} 26. Rg1 {[%clk 0:01:44]}  Re8 {[%clk 0:02:04]} 27. Rxg5 {[%clk 0:01:34]}  Kf8 {[%clk 0:02:01]} 28. Rf5 {[%clk 0:01:21]}  Re7 {[%clk 0:01:53]} 29. Ne6+ {[%clk 0:01:18]}  Kg8 {[%clk 0:01:52]} 30. Ng5 {[%clk 0:01:18]}  Ne5 {[%clk 0:01:52]} 31. Kg3 {[%clk 0:01:13]}  g6 {[%clk 0:01:52]} 32. Rf1 {[%clk 0:01:11]}  Kg7 {[%clk 0:01:53]} 33. Ne4 {[%clk 0:01:10]}  f5 {[%clk 0:01:53]} 34. Nf2 {[%clk 0:01:09]}  Nd7 {[%clk 0:01:50]} 35. Re1 {[%clk 0:01:07]}  Nc5 {[%clk 0:01:49]} 36. Bc2 {[%clk 0:01:06]}  Kf6 {[%clk 0:01:48]} 37. e4 {[%clk 0:01:06]}  g5 {[%clk 0:01:49]} 38. b4 {[%clk 0:01:00]}  Nd7 {[%clk 0:01:49]} 39. h4 {[%clk 0:00:51]}  d5 {[%clk 0:01:47]} 40. hxg5+ {[%clk 0:00:48]}  Kxg5 {[%clk 0:01:48]} 41. Nh3+ {[%clk 0:00:41]}  Kf6 {[%clk 0:01:48]} 42. Nf4 {[%clk 0:00:41]}  c6 {[%clk 0:01:45]} 43. Rh1 {[%clk 0:00:28]}  fxe4 {[%clk 0:01:43]} 44. Rh6+ {[%clk 0:00:27]}  Kf5 {[%clk 0:01:43]} 45. Rh5+ {[%clk 0:00:27]}  Kf6 {[%clk 0:01:42]} 46. Rh6+ {[%clk 0:00:27]}  Kg7 {[%clk 0:01:37]} 47. Re6 {[%clk 0:00:27]}  Rf7 {[%clk 0:01:36]} 48. Bd1 {[%clk 0:00:24]}  Nf8 {[%clk 0:01:28]} 49. Nh5+ {[%clk 0:00:20]}  Kh7 {[%clk 0:01:27]} 50. Rf6 {[%clk 0:00:20]}  Rxf6 {[%clk 0:01:23]} 51. Nxf6+ {[%clk 0:00:21]}  Kg6 {[%clk 0:01:24]} 52. Ne8 {[%clk 0:00:20]}  Ne6 {[%clk 0:01:14]} 53. Nd6 {[%clk 0:00:19]}  b5 {[%clk 0:01:12]} 54. Bg4 {[%clk 0:00:19]}  Nc7 {[%clk 0:01:09]} 55. Kf4 {[%clk 0:00:19]}  Kf6 {[%clk 0:01:09]} 56. Bh5 {[%clk 0:00:18]}  Ke6 {[%clk 0:01:09]} 57. Nb7 {[%clk 0:00:18]}  Kd7 {[%clk 0:01:03]} 58. Bg4+ {[%clk 0:00:17]}  Ke7 {[%clk 0:01:02]} 59. Ke5 {[%clk 0:00:17]}  Na8 {[%clk 0:01:01]} 60. Nc5 {[%clk 0:00:17]}  Nb6 {[%clk 0:01:01]} 61. Nxa6 {[%clk 0:00:16]}  Nc4+ {[%clk 0:01:01]} 62. Kd4 {[%clk 0:00:16]}  Kd6 {[%clk 0:01:02]} 63. Nc5 {[%clk 0:00:16]}  Na3 {[%clk 0:01:01]} 64. Bd1 {[%clk 0:00:14]}  Nc4 {[%clk 0:00:59]} 65. Bb3 {[%clk 0:00:14]}  Nd2 {[%clk 0:00:59]} 66. Bd1 {[%clk 0:00:14]}  Nc4 {[%clk 0:00:58]} 67. Be2 {[%clk 0:00:14]}  Na3 {[%clk 0:00:59]} 68. Nb7+ {[%clk 0:00:09]}  Kc7 {[%clk 0:00:59]} 69. Na5 {[%clk 0:00:09]}  Kd6 {[%clk 0:00:59]} 70. Nb7+ {[%clk 0:00:06]}  Kc7 {[%clk 0:00:59]} 71. Na5 {[%clk 0:00:07]}  Kb6 {[%clk 0:00:59]} 72. Bd1 {[%clk 0:00:05]}  Nb1 {[%clk 0:00:58]} 73. Bb3 {[%clk 0:00:05]}  Nd2 {[%clk 0:00:58]} 74. Bc2 {[%clk 0:00:05]}  Nf3+ {[%clk 0:00:58]} 75. Ke3 {[%clk 0:00:05]}  Ne5 {[%clk 0:00:59]} 76. Nb3 {[%clk 0:00:06]}  Nc4+ {[%clk 0:00:59]} 77. Kd4 {[%clk 0:00:06]}  Na3 {[%clk 0:01:00]} 78. Bd1 {[%clk 0:00:06]}  Kc7 {[%clk 0:01:00]} 79. Nd2 {[%clk 0:00:06]}  Kd6 {[%clk 0:01:00]} 80. Bb3 {[%clk 0:00:07]}  Kc7 {[%clk 0:00:59]} 81. Bd1 {[%clk 0:00:07]}  Kd6 {[%clk 0:00:59]} 82. Bg4 {[%clk 0:00:07]}  Nc2# {[%clk 0:00:59]} 0-1


[Site "https://www.chess.com"]

[Event "Titled Tuesday Blitz May 9 Late 2023"]
[White "Santos Ruiz, Miguel"]
[Black "koncheto"]
[WhiteFideId "22291482"]
[WhiteElo "2499"]
[BlackElo "2481"]
[Result "1-0"]
[Round "03"]
[TimeControl "180+2"]
[Date "2023.05.09"]
[WhiteClock "0:01:15"]
[BlackClock "0:01:22"]

1. e4 {[%clk 0:03:00]}  c5 {[%clk 0:02:55]} 2. Nf3 {[%clk 0:03:00]}  d6 {[%clk 0:02:56]} 3. d4 {[%clk 0:03:01]}  cxd4 {[%clk 0:02:56]} 4. Nxd4 {[%clk 0:03:02]}  Nf6 {[%clk 0:02:57]} 5. Nc3 {[%clk 0:03:02]}  Nc6 {[%clk 0:02:58]} 6. Bc4 {[%clk 0:03:01]}  e6 {[%clk 0:02:58]} 7. Be3 {[%clk 0:03:01]}  a6 {[%clk 0:02:58]} 8. Qe2 {[%clk 0:03:00]}  Qc7 {[%clk 0:02:54]} 9. Nxc6 {[%clk 0:02:59]}  bxc6 {[%clk 0:02:33]} 10. g4 {[%clk 0:02:58]}  d5 {[%clk 0:02:33]} 11. g5 {[%clk 0:02:58]}  Nd7 {[%clk 0:02:29]} 12. exd5 {[%clk 0:02:57]}  cxd5 {[%clk 0:02:29]} 13. Nxd5 {[%clk 0:02:44]}  Qc6 {[%clk 0:02:04]} 14. O-O-O {[%clk 0:02:11]}  Bd6 {[%clk 0:01:48]} 15. Bd4 {[%clk 0:01:17]}  O-O {[%clk 0:01:43]} 16. Nf6+ {[%clk 0:01:15]}  gxf6 {[%clk 0:01:25]} 17. gxf6 {[%clk 0:01:15]}  Bb7 {[%clk 0:01:22]} 18. Qg4+ {[%clk 0:01:15]} 1-0


[Site "https://www.chess.com"]

[Event "Titled Tuesday Blitz May 9 Late 2023"]
[White "Martic, Ivan"]
[Black "Klukin, Kirill"]
[WhiteFideId "929301"]
[BlackFideId "24199273"]
[WhiteElo "2360"]
[BlackElo "2344"]
[Result "0-1"]
[Round "03"]
[TimeControl "180+2"]
[Date "2023.05.09"]
[WhiteClock "0:00:11"]
[BlackClock "0:00:23"]

1. d4 {[%clk 0:03:00]}  e6 {[%clk 0:02:59]} 2. c4 {[%clk 0:02:58]}  d5 {[%clk 0:02:59]} 3. Nc3 {[%clk 0:02:58]}  Nf6 {[%clk 0:02:59]} 4. cxd5 {[%clk 0:02:59]}  exd5 {[%clk 0:02:59]} 5. Bg5 {[%clk 0:02:58]}  c6 {[%clk 0:02:58]} 6. e3 {[%clk 0:02:58]}  Bf5 {[%clk 0:02:53]} 7. Qf3 {[%clk 0:02:58]}  Bg6 {[%clk 0:02:50]} 8. Bxf6 {[%clk 0:02:59]}  Qxf6 {[%clk 0:02:50]} 9. Qxf6 {[%clk 0:02:59]}  gxf6 {[%clk 0:02:51]} 10. Nf3 {[%clk 0:02:59]}  a5 {[%clk 0:02:51]} 11. Nh4 {[%clk 0:02:57]}  a4 {[%clk 0:02:51]} 12. a3 {[%clk 0:02:53]}  Nd7 {[%clk 0:02:51]} 13. f4 {[%clk 0:02:49]}  Bc2 {[%clk 0:02:50]} 14. Rc1 {[%clk 0:02:49]}  Bb3 {[%clk 0:02:50]} 15. Nf5 {[%clk 0:02:41]}  b5 {[%clk 0:02:48]} 16. Bd3 {[%clk 0:02:31]}  Nb6 {[%clk 0:02:48]} 17. Kf2 {[%clk 0:02:27]}  Nc4 {[%clk 0:02:44]} 18. Bxc4 {[%clk 0:02:24]}  Bxc4 {[%clk 0:02:39]} 19. Rhd1 {[%clk 0:02:17]}  Kd7 {[%clk 0:02:37]} 20. e4 {[%clk 0:02:11]}  b4 {[%clk 0:02:36]} 21. axb4 {[%clk 0:02:09]}  Bxb4 {[%clk 0:02:36]} 22. exd5 {[%clk 0:02:08]}  cxd5 {[%clk 0:02:35]} 23. Ne3 {[%clk 0:01:58]}  Bb3 {[%clk 0:02:21]} 24. Ncxd5 {[%clk 0:01:53]}  Bxd1 {[%clk 0:01:52]} 25. Nb6+ {[%clk 0:01:50]}  Kd6 {[%clk 0:01:46]} 26. Nxa8 {[%clk 0:01:48]}  Bb3 {[%clk 0:01:45]} 27. Nb6 {[%clk 0:01:45]}  Rb8 {[%clk 0:01:39]} 28. Nbc4+ {[%clk 0:01:33]}  Kd7 {[%clk 0:01:38]} 29. Nd5 {[%clk 0:01:28]}  Be7 {[%clk 0:01:23]} 30. Ncb6+ {[%clk 0:01:13]}  Kd6 {[%clk 0:01:19]} 31. Nxe7 {[%clk 0:01:09]}  Kxe7 {[%clk 0:01:17]} 32. Rc6 {[%clk 0:01:01]}  Rb7 {[%clk 0:01:02]} 33. d5 {[%clk 0:00:55]}  Kd8 {[%clk 0:00:49]} 34. d6 {[%clk 0:00:52]}  Be6 {[%clk 0:00:49]} 35. Ke3 {[%clk 0:00:44]}  Bd7 {[%clk 0:00:41]} 36. Nxd7 {[%clk 0:00:44]}  Rb3+ {[%clk 0:00:41]} 37. Ke4 {[%clk 0:00:40]}  Kxd7 {[%clk 0:00:40]} 38. Rc7+ {[%clk 0:00:36]}  Kxd6 {[%clk 0:00:38]} 39. Rxf7 {[%clk 0:00:37]}  Ke6 {[%clk 0:00:32]} 40. Rxh7 {[%clk 0:00:29]}  Rxb2 {[%clk 0:00:29]} 41. f5+ {[%clk 0:00:27]}  Kd6 {[%clk 0:00:28]} 42. Ra7 {[%clk 0:00:17]}  Rxg2 {[%clk 0:00:22]} 43. Ra6+ {[%clk 0:00:17]}  Ke7 {[%clk 0:00:22]} 44. Rxa4 {[%clk 0:00:17]}  Rg4+ {[%clk 0:00:22]} 45. Kd5 {[%clk 0:00:11]}  Rxa4 {[%clk 0:00:23]} 0-1


[Site "https://www.chess.com"]